[Event "29th Czech Open-Rapid 2018"]
[Site "Pardubice"]
[Date "2018.07.18"]
[Round "2"]
[White "Nehyba, Martin"]
[Black "Valenta, Vit Sr"]
[Result "1/2-1/2"]
[ECO "B22"]
[WhiteElo "2163"]
[BlackElo "2127"]
[Annotator "NA"]
[PlyCount "141"]
[EventDate "2018.07.18"]
[EventType "swiss"]
[EventCountry "CZE"]
[SourceTitle "playchess.com"]
[Source "ChessBase"]
[SourceQuality "1"]
[TimeControl "900+10"]

1. e4 {[%emt 0:00:00]} c5 {[%emt 0:00:00]} 2. c3 {[%emt 0:00:03]} Nf6 {[%emt 0:00:00]} 3. e5 {[%emt 0:00:02]} Nd5 {[%emt 0:00:00]} 4. d4 {[%emt 0:00:01]} cxd4 {[%emt 0:00:03]} 5. Nf3 {[%emt 0:00:02]} Nc6 {[%emt 0:00:20]} 6. cxd4 {[%emt 0:00:05]} e6 {[%emt 0:00:10]} 7. Bc4 {[%emt 0:00:21]} Nb6 {[%emt 0:00:22]} 8. Bb3 {[%emt 0:00:10]} d6 {[%emt 0:00:35]} 9. Nc3 {[%emt 0:00:32]} dxe5 {[%emt 0:00:08]} 10. dxe5 {[%emt 0:00:02]} Qxd1+ {[%emt 0:00:05]} 11. Bxd1 {[%emt 0:00:04]} Bc5 {[%emt 0:00:06]} 12. Ne4 {[%emt 0:00:57]} Bb4+ {[%emt 0:00:33]} 13. Ke2 {[%emt 0:00:07]} O-O {[%emt 0:00:09]} 14. a3 {[%emt 0:00:01]} Be7 {[%emt 0:00:04]} 15. b4 {[%emt 0:00:02]} Nc4 {[%emt 0:00:11]} 16. Bf4 {[%emt 0:00:13]} a6 {[%emt 0:00:18]} 17. Bb3 {[%emt 0:00:09]} Nb6 {[%emt 0:00:22]} 18. Rhd1 {[%emt 0:00:46]} a5 {[%emt 0:01:12]} 19. Be3 {[%emt 0:00:37]} Nd5 {[%emt 0:00:26]} 20. b5 {[%emt 0:01:57]} Nxe3 {[%emt 0:00:52]} 21. Kxe3 {[%emt 0:01:57]} a4 {[%emt 0:00:11]} 22. bxc6 {[%emt 0:00:53]} axb3 {[%emt 0:00:02]} 23. c7 {[%emt 0:00:12]} f6 {[%emt 0:03:33]} 24. Nd6 {[%emt 0:01:21]} fxe5 {[%emt 0:00:42]} 25. Nxe5 {[%emt 0:01:48]} Bg5+ {[%emt 0:01:35]} 26. Ke2 {[%emt 0:00:20]} Ra5 {[%emt 0:00:44]} 27. Nf3 {[%emt 0:00:52]} Bf6 {[%emt 0:00:21]} 28. Rab1 {[%emt 0:02:32]} Rxa3 {[%emt 0:00:27]} 29. Nd4 {[%emt 0:01:10]} b6 {[%emt 0:01:41]} 30. Nxc8 {[%emt 0:00:21]} Rxc8 {[%emt 0:00:03]} 31. Nxe6 {[%emt 0:00:01]} Kf7 {[%emt 0:01:52]} 32. Rd8 {[%emt 0:00:31]} Raa8 {[%emt 0:00:02]} 33. Rxc8 {[%emt 0:01:55]} Rxc8 {[%emt 0:00:02]} 34. Nf4 {[%emt 0:00:13]} Rxc7 {[%emt 0:01:06]} 35. Rxb3 {[%emt 0:00:01]} Rc2+ {[%emt 0:00:09]} 36. Ke3 {[%emt 0:00:27]} Rc6 {[%emt 0:00:32]} 37. Nd5 {[%emt 0:00:13]} Bd8 {[%emt 0:00:09]} 38. f4 {[%emt 0:00:10]} Rd6 {[%emt 0:00:07]} 39. Nc3 {[%emt 0:00:06]} Bf6 {[%emt 0:00:14]} 40. Ne4 {[%emt 0:00:04]} Bd4+ {[%emt 0:00:02]} 41. Kf3 {[%emt 0:00:13]} Rd7 {[%emt 0:00:18]} 42. Rb4 {[%emt 0:00:15]} h6 {[%emt 0:00:30]} 43. Ng3 {[%emt 0:00:12]} Bc5 {[%emt 0:00:06]} 44. Rb3 {[%emt 0:00:01]} Ke6 {[%emt 0:00:10]} 45. Ne4 {[%emt 0:00:05]} Bd4 {[%emt 0:00:22]} 46. g4 {[%emt 0:00:20]} Kd5 {[%emt 0:00:02]} 47. Nd2 {[%emt 0:00:06]} Rc7 {[%emt 0:00:15]} 48. Rb5+ {[%emt 0:00:08]} Kd6 {[%emt 0:00:09]} 49. Ke4 {[%emt 0:00:04]} Bg1 {[%emt 0:00:23]} 50. Nf3 {[%emt 0:00:15]} Rc4+ {[%emt 0:00:10]} 51. Kd3 {[%emt 0:00:11]} Rxf4 {[%emt 0:00:16]} 52. Nxg1 {[%emt 0:00:02]} Rxg4 {[%emt 0:00:01]} 53. Nf3 {[%emt 0:00:06]} Kc6 {[%emt 0:00:01]} 54. Rf5 {[%emt 0:00:13]} g6 {[%emt 0:00:07]} 55. Rf6+ {[%emt 0:00:30]} Kc5 {[%emt 0:00:07]} 56. Ne5 {[%emt 0:00:05]} Rh4 {[%emt 0:00:34]} 57. Nf3 {[%emt 0:00:07]} Rh3 {[%emt 0:00:04]} 58. Ke4 {[%emt 0:00:03]} g5 {[%emt 0:00:01]} 59. Rg6 {[%emt 0:00:13]} b5 {[%emt 0:00:05]} 60. Rg8 {[%emt 0:00:08]} b4 {[%emt 0:00:06]} 61. Rc8+ {[%emt 0:00:01]} Kb5 {[%emt 0:00:01]} 62. Nd4+ {[%emt 0:00:05]} Ka5 {[%emt 0:00:06]} 63. Ra8+ {[%emt 0:00:08]} Kb6 {[%emt 0:00:02]} 64. Ra2 {[%emt 0:00:01]} Kc5 {[%emt 0:00:11]} 65. Rc2+ {[%emt 0:00:02]} Kb6 {[%emt 0:00:05]} 66. Kf5 {[%emt 0:00:25]} Rh4 {[%emt 0:00:54]} 67. Ke5 {[%emt 0:00:30]} h5 {[%emt 0:00:16]} 68. Rb2 {[%emt 0:00:13]} Kc5 {[%emt 0:00:03]} 69. Rc2+ {[%emt 0:00:04]} Kb6 {[%emt 0:00:03]} 70. Rb2 {[%emt 0:00:21]} Kc5 {[%emt 0:00:01]} 71. Rc2+ {[%emt 0:00:11]} 1/2-1/2

[Event "29th Czech Open-Rapid 2018"]
[Site "Pardubice"]
[Date "2018.07.18"]
[Round "2"]
[White "Maslak, Alexander"]
[Black "Vestfal, Jan"]
[Result "1-0"]
[ECO "B63"]
[WhiteElo "2154"]
[BlackElo "1407"]
[Annotator "NA"]
[PlyCount "91"]
[EventDate "2018.07.18"]
[EventType "swiss"]
[EventCountry "CZE"]
[SourceTitle "playchess.com"]
[Source "ChessBase"]
[SourceQuality "1"]
[TimeControl "900+10"]

1. e4 {[%emt 0:00:00]} c5 {[%emt 0:00:00]} 2. Nf3 {[%emt 0:00:00]} d6 {[%emt 0:00:00]} 3. d4 {[%emt 0:00:00]} cxd4 {[%emt 0:00:01]} 4. Nxd4 {[%emt 0:00:00]} Nf6 {[%emt 0:00:10]} 5. Nc3 {[%emt 0:00:00]} Nc6 {[%emt 0:00:07]} 6. Bg5 {[%emt 0:00:03]} e6 {[%emt 0:00:12]} 7. Qd2 {[%emt 0:00:04]} Be7 {[%emt 0:00:05]} 8. O-O-O {[%emt 0:00:03]} Bd7 {[%emt 0:00:16]} 9. Ndb5 {[%emt 0:00:26]} d5 {[%emt 0:01:19]} 10. exd5 {[%emt 0:00:35]} Nxd5 {[%emt 0:00:21]} 11. Bxe7 {[%emt 0:00:11]} Ncxe7 {[%emt 0:00:44]} 12. Nd6+ {[%emt 0:00:45]} Kf8 {[%emt 0:00:14]} 13. Nxd5 {[%emt 0:02:03]} Nxd5 {[%emt 0:00:27]} 14. Ne4 {[%emt 0:03:02]} Rc8 {[%emt 0:00:29]} 15. Kb1 {[%emt 0:00:07]} Ba4 {[%emt 0:02:30]} 16. b3 {[%emt 0:02:27]} Bd7 {[%emt 0:01:30]} 17. c4 {[%emt 0:00:13]} Nb6 {[%emt 0:00:06]} 18. Be2 {[%emt 0:01:06]} h6 {[%emt 0:00:54]} 19. Nd6 {[%emt 0:01:03]} Rc7 {[%emt 0:00:39]} 20. Nb5 {[%emt 0:00:37]} Rc8 {[%emt 0:01:02]} 21. Qd6+ {[%emt 0:02:59]} Kg8 {[%emt 0:01:50]} 22. Nxa7 {[%emt 0:00:04]} Ra8 {[%emt 0:01:01]} 23. Nb5 {[%emt 0:00:02]} Kh7 {[%emt 0:00:36]} 24. Nc7 {[%emt 0:00:23]} Rc8 {[%emt 0:00:56]} 25. Qxb6 {[%emt 0:00:12]} Rxc7 {[%emt 0:00:31]} 26. Bd3+ {[%emt 0:00:56]} g6 {[%emt 0:00:08]} 27. h4 {[%emt 0:00:13]} Qc8 {[%emt 0:00:33]} 28. h5 {[%emt 0:00:08]} Rc6 {[%emt 0:00:27]} 29. Qe3 {[%emt 0:00:28]} Kg7 {[%emt 0:00:20]} 30. hxg6 {[%emt 0:00:05]} fxg6 {[%emt 0:00:09]} 31. Qd4+ {[%emt 0:00:11]} Kf7 {[%emt 0:00:11]} 32. Be4 {[%emt 0:00:38]} Rc7 {[%emt 0:00:13]} 33. Qd3 {[%emt 0:00:32]} g5 {[%emt 0:00:44]} 34. f4 {[%emt 0:00:13]} gxf4 {[%emt 0:00:34]} 35. Qd6 {[%emt 0:00:04]} f3 {[%emt 0:00:51]} 36. Bxf3 {[%emt 0:00:12]} Be8 {[%emt 0:00:30]} 37. Rdf1 {[%emt 0:00:14]} Kg8 {[%emt 0:00:09]} 38. Bg4 {[%emt 0:00:11]} Bf7 {[%emt 0:00:04]} 39. Qg3 {[%emt 0:00:08]} Kf8 {[%emt 0:00:18]} 40. Qe5 {[%emt 0:00:16]} Ke7 {[%emt 0:00:15]} 41. Qf6+ {[%emt 0:00:04]} Kd6 {[%emt 0:00:09]} 42. Rd1+ {[%emt 0:00:06]} Kc6 {[%emt 0:00:05]} 43. Qd4 {[%emt 0:00:08]} Rd7 {[%emt 0:00:10]} 44. Bf3+ {[%emt 0:00:07]} Kc7 {[%emt 0:00:03]} 45. Qe5+ {[%emt 0:00:04]} Kd8 46. Rxd7+ {[%emt 0:00:05]} 1-0

[Event "29th Czech Open-Rapid 2018"]
[Site "Pardubice"]
[Date "2018.07.18"]
[Round "2"]
[White "Kyrychenko, Maryan"]
[Black "Pavlicek, Lukas"]
[Result "1-0"]
[ECO "B23"]
[WhiteElo "2152"]
[BlackElo "1819"]
[Annotator "NA"]
[PlyCount "85"]
[EventDate "2018.07.18"]
[EventType "swiss"]
[EventCountry "CZE"]
[SourceTitle "playchess.com"]
[Source "ChessBase"]
[SourceQuality "1"]
[TimeControl "900+10"]

1. e4 {[%emt 0:00:00]} c5 {[%emt 0:00:00]} 2. Nc3 {[%emt 0:00:00]} Nc6 {[%emt 0:00:03]} 3. f4 {[%emt 0:00:00]} e6 {[%emt 0:00:13]} 4. Nf3 {[%emt 0:00:00]} g6 {[%emt 0:00:50]} 5. Bb5 {[%emt 0:00:00]} Bg7 {[%emt 0:00:02]} 6. Bxc6 {[%emt 0:00:01]} bxc6 {[%emt 0:00:02]} 7. d3 {[%emt 0:00:02]} d5 {[%emt 0:00:24]} 8. O-O {[%emt 0:00:02]} Ba6 {[%emt 0:00:36]} 9. Qe1 {[%emt 0:00:24]} Ne7 {[%emt 0:00:30]} 10. f5 {[%emt 0:00:05]} dxe4 {[%emt 0:01:23]} 11. Nxe4 {[%emt 0:00:44]} exf5 {[%emt 0:02:06]} 12. Nxc5 {[%emt 0:00:13]} Bc8 {[%emt 0:01:12]} 13. c3 {[%emt 0:00:23]} O-O {[%emt 0:00:27]} 14. Bg5 {[%emt 0:00:52]} Re8 {[%emt 0:00:49]} 15. Qh4 {[%emt 0:00:13]} Qd6 {[%emt 0:00:51]} 16. d4 {[%emt 0:00:30]} Nd5 {[%emt 0:00:27]} 17. Rae1 {[%emt 0:00:39]} Be6 {[%emt 0:00:54]} 18. Bh6 {[%emt 0:01:45]} Rab8 {[%emt 0:00:33]} 19. Bxg7 {[%emt 0:00:09]} Kxg7 {[%emt 0:00:01]} 20. c4 {[%emt 0:02:16]} Nf6 {[%emt 0:00:35]} 21. b3 {[%emt 0:00:07]} h6 {[%emt 0:00:50]} 22. Re2 {[%emt 0:00:12]} Re7 {[%emt 0:00:36]} 23. Rfe1 {[%emt 0:00:05]} Rbe8 {[%emt 0:00:03]} 24. h3 {[%emt 0:01:37]} Nh5 {[%emt 0:00:54]} 25. Ne5 {[%emt 0:00:21]} Rd8 {[%emt 0:01:00]} 26. Nxc6 {[%emt 0:00:37]} g5 {[%emt 0:01:04]} 27. Qxh5 {[%emt 0:00:08]} Qxc6 {[%emt 0:00:01]} 28. Nxe6+ {[%emt 0:01:04]} fxe6 {[%emt 0:00:16]} 29. d5 {[%emt 0:00:06]} Qb6+ {[%emt 0:00:23]} 30. Kh1 {[%emt 0:00:04]} Rde8 {[%emt 0:00:03]} 31. Qf3 {[%emt 0:00:36]} Kf6 {[%emt 0:00:39]} 32. Qc3+ {[%emt 0:00:07]} Kg6 {[%emt 0:00:06]} 33. c5 {[%emt 0:00:09]} Qa6 {[%emt 0:01:11]} 34. d6 {[%emt 0:00:01]} Rf7 {[%emt 0:00:14]} 35. Rxe6+ {[%emt 0:00:05]} Rxe6 {[%emt 0:00:02]} 36. Rxe6+ {[%emt 0:00:01]} Kh7 {[%emt 0:00:03]} 37. Qc4 {[%emt 0:00:32]} Qxa2 {[%emt 0:00:36]} 38. Re2 {[%emt 0:00:01]} Qa1+ {[%emt 0:00:14]} 39. Kh2 {[%emt 0:00:01]} Rg7 {[%emt 0:00:21]} 40. Qd3 {[%emt 0:00:23]} Qf6 {[%emt 0:00:11]} 41. d7 {[%emt 0:00:27]} Qd8 {[%emt 0:00:14]} 42. Qxf5+ {[%emt 0:00:03]} Rg6 {[%emt 0:00:02]} 43. Re6 {[%emt 0:00:09]} 1-0

[Event "29th Czech Open-Rapid 2018"]
[Site "Pardubice"]
[Date "2018.07.18"]
[Round "2"]
[White "Vokoun, Jan"]
[Black "Khmelev, Mikhail"]
[Result "0-1"]
[ECO "D05"]
[WhiteElo "2124"]
[BlackElo "1972"]
[Annotator "NA"]
[PlyCount "82"]
[EventDate "2018.07.18"]
[EventType "swiss"]
[EventCountry "CZE"]
[SourceTitle "playchess.com"]
[Source "ChessBase"]
[SourceQuality "1"]
[TimeControl "900+10"]

1. d4 {[%emt 0:00:00]} e6 {[%emt 0:00:00]} 2. Nf3 {[%emt 0:00:14]} Nf6 {[%emt 0:00:00]} 3. e3 {[%emt 0:00:33]} d5 {[%emt 0:00:07]} 4. Bd3 {[%emt 0:00:34]} c5 {[%emt 0:00:02]} 5. c3 {[%emt 0:00:01]} Nc6 {[%emt 0:00:05]} 6. Nbd2 {[%emt 0:00:10]} Bd6 {[%emt 0:00:03]} 7. Qe2 {[%emt 0:01:19]} O-O {[%emt 0:00:03]} 8. dxc5 {[%emt 0:01:25]} Bxc5 {[%emt 0:00:02]} 9. e4 {[%emt 0:00:01]} Ne7 {[%emt 0:02:18]} 10. e5 {[%emt 0:00:45]} Nd7 {[%emt 0:00:04]} 11. Nb3 {[%emt 0:00:53]} Ng6 {[%emt 0:00:21]} 12. O-O {[%emt 0:01:54]} Qc7 {[%emt 0:01:05]} 13. Re1 {[%emt 0:00:32]} Be7 {[%emt 0:00:17]} 14. g3 {[%emt 0:02:28]} Nc5 {[%emt 0:00:01]} 15. Nxc5 {[%emt 0:00:15]} Bxc5 {[%emt 0:00:01]} 16. Be3 {[%emt 0:01:00]} b6 {[%emt 0:00:15]} 17. Bd4 {[%emt 0:00:23]} f5 {[%emt 0:02:02]} 18. exf6 {[%emt 0:00:27]} gxf6 {[%emt 0:00:01]} 19. c4 {[%emt 0:00:58]} Bxd4 {[%emt 0:02:20]} 20. Nxd4 {[%emt 0:00:02]} Qe5 {[%emt 0:00:00]} 21. Nf3 {[%emt 0:01:44]} Qxe2 {[%emt 0:00:12]} 22. Rxe2 {[%emt 0:00:02]} Kf7 {[%emt 0:01:03]} 23. cxd5 {[%emt 0:00:04]} exd5 {[%emt 0:00:01]} 24. Rc1 {[%emt 0:00:11]} Bg4 {[%emt 0:00:05]} 25. Re3 {[%emt 0:00:08]} Rac8 {[%emt 0:00:15]} 26. Rxc8 {[%emt 0:01:23]} Rxc8 {[%emt 0:00:01]} 27. Nd4 {[%emt 0:00:17]} Bh3 {[%emt 0:00:04]} 28. f4 {[%emt 0:00:35]} Rc1+ {[%emt 0:00:54]} 29. Kf2 {[%emt 0:00:01]} Rh1 {[%emt 0:00:13]} 30. Nf3 {[%emt 0:00:05]} Bg4 {[%emt 0:00:02]} 31. Kg2 {[%emt 0:00:49]} Bxf3+ {[%emt 0:00:03]} 32. Rxf3 {[%emt 0:00:01]} Rd1 {[%emt 0:00:04]} 33. Bc2 {[%emt 0:00:14]} Ra1 {[%emt 0:00:47]} 34. Bb3 {[%emt 0:00:23]} Ne7 {[%emt 0:00:06]} 35. Rd3 {[%emt 0:00:17]} Rb1 {[%emt 0:00:07]} 36. Rd2 {[%emt 0:00:01]} Ke6 {[%emt 0:00:01]} 37. Kf2 {[%emt 0:00:16]} Kd6 {[%emt 0:00:01]} 38. g4 {[%emt 0:00:12]} h6 {[%emt 0:00:20]} 39. Kg3 {[%emt 0:00:06]} Rg1+ {[%emt 0:00:04]} 40. Kf2 {[%emt 0:00:22]} Rxg4 {[%emt 0:00:03]} 41. Kf3 {[%emt 0:00:06]} Rg1 {[%emt 0:00:08]} 0-1

[Event "29th Czech Open-Rapid 2018"]
[Site "Pardubice"]
[Date "2018.07.18"]
[Round "2"]
[White "Tarakanov, Oleg"]
[Black "Fiala, Milan"]
[Result "1-0"]
[ECO "B50"]
[WhiteElo "2123"]
[BlackElo "1845"]
[Annotator "NA"]
[PlyCount "107"]
[EventDate "2018.07.18"]
[EventType "swiss"]
[EventCountry "CZE"]
[SourceTitle "playchess.com"]
[Source "ChessBase"]
[SourceQuality "1"]
[TimeControl "900+10"]

1. e4 {[%emt 0:00:00]} c5 {[%emt 0:00:00]} 2. Nf3 {[%emt 0:00:00]} d6 {[%emt 0:00:00]} 3. c3 {[%emt 0:00:00]} Nc6 {[%emt 0:00:13]} 4. d4 {[%emt 0:00:04]} cxd4 {[%emt 0:00:49]} 5. cxd4 {[%emt 0:00:02]} Nf6 {[%emt 0:00:17]} 6. Nc3 {[%emt 0:00:09]} e6 {[%emt 0:00:54]} 7. Bd3 {[%emt 0:00:29]} Be7 {[%emt 0:00:09]} 8. O-O {[%emt 0:00:04]} O-O {[%emt 0:00:02]} 9. Re1 {[%emt 0:01:06]} e5 {[%emt 0:01:19]} 10. d5 {[%emt 0:00:05]} Nb8 {[%emt 0:01:32]} 11. h3 {[%emt 0:00:07]} Nbd7 {[%emt 0:00:24]} 12. Be3 {[%emt 0:00:17]} b6 {[%emt 0:01:22]} 13. b4 {[%emt 0:00:12]} a5 {[%emt 0:00:50]} 14. a3 {[%emt 0:00:04]} axb4 {[%emt 0:00:11]} 15. axb4 {[%emt 0:00:01]} Bb7 {[%emt 0:00:11]} 16. Qb3 {[%emt 0:01:30]} Nh5 {[%emt 0:01:04]} 17. g4 {[%emt 0:00:25]} Nf4 {[%emt 0:00:30]} 18. Bxf4 {[%emt 0:00:42]} exf4 {[%emt 0:00:02]} 19. Ne2 {[%emt 0:00:49]} Ne5 {[%emt 0:00:43]} 20. Bb5 {[%emt 0:00:04]} Nxf3+ {[%emt 0:01:06]} 21. Qxf3 {[%emt 0:00:02]} g5 {[%emt 0:00:48]} 22. Rxa8 {[%emt 0:00:47]} Qxa8 {[%emt 0:00:36]} 23. Nd4 {[%emt 0:00:10]} Bf6 {[%emt 0:01:11]} 24. Nf5 {[%emt 0:00:06]} Rd8 {[%emt 0:00:47]} 25. h4 {[%emt 0:00:14]} Bc8 {[%emt 0:00:22]} 26. hxg5 {[%emt 0:01:25]} Bxg5 {[%emt 0:00:03]} 27. Nd4 {[%emt 0:00:32]} Bd7 {[%emt 0:00:20]} 28. Bxd7 {[%emt 0:01:47]} Rxd7 {[%emt 0:00:02]} 29. Nc6 {[%emt 0:00:02]} h6 {[%emt 0:01:35]} 30. Qc3 {[%emt 0:00:07]} Kh7 {[%emt 0:00:45]} 31. Kg2 {[%emt 0:00:14]} Qg8 {[%emt 0:00:02]} 32. Rh1 {[%emt 0:00:29]} Qg6 {[%emt 0:00:03]} 33. Kf3 {[%emt 0:00:33]} Bf6 {[%emt 0:00:05]} 34. Qd3 {[%emt 0:00:15]} Be5 {[%emt 0:00:17]} 35. Rh5 {[%emt 0:01:21]} f6 {[%emt 0:00:02]} 36. Qf1 {[%emt 0:00:04]} Rg7 {[%emt 0:00:04]} 37. Qh3 {[%emt 0:00:02]} Rc7 {[%emt 0:00:31]} 38. Rf5 {[%emt 0:00:09]} Rg7 {[%emt 0:00:27]} 39. Rh5 {[%emt 0:00:49]} Rc7 {[%emt 0:00:11]} 40. Kg2 {[%emt 0:00:08]} Rg7 {[%emt 0:00:07]} 41. f3 {[%emt 0:00:01]} Rc7 {[%emt 0:00:10]} 42. Qh4 {[%emt 0:00:34]} Rg7 {[%emt 0:00:36]} 43. Kh3 {[%emt 0:00:06]} Rc7 {[%emt 0:00:13]} 44. Qf2 {[%emt 0:00:06]} Rb7 {[%emt 0:00:18]} 45. Qa2 {[%emt 0:00:07]} Qg8 {[%emt 0:00:08]} 46. Qa6 {[%emt 0:00:20]} Qg7 {[%emt 0:00:33]} 47. Qa8 {[%emt 0:00:18]} Rf7 {[%emt 0:00:14]} 48. Qd8 {[%emt 0:00:39]} Rd7 {[%emt 0:00:15]} 49. Qxb6 {[%emt 0:00:09]} Rb7 {[%emt 0:00:09]} 50. Qa6 {[%emt 0:00:09]} Qc7 {[%emt 0:00:05]} 51. Qa8 {[%emt 0:00:26]} Qb6 {[%emt 0:00:10]} 52. Qc8 {[%emt 0:00:32]} Rg7 {[%emt 0:00:07]} 53. Qf5+ {[%emt 0:00:19]} Rg6 {[%emt 0:00:02]} 54. Ne7 {[%emt 0:00:30]} 1-0

[Event "29th Czech Open-Rapid 2018"]
[Site "Pardubice"]
[Date "2018.07.18"]
[Round "2"]
[White "Zhuravlev, Stepan"]
[Black "Kobo, Ori"]
[Result "1/2-1/2"]
[ECO "A40"]
[WhiteElo "2121"]
[BlackElo "2508"]
[Annotator "RC"]
[PlyCount "147"]
[EventDate "2018.07.18"]
[EventType "swiss"]
[EventCountry "CZE"]
[SourceTitle "playchess.com"]
[Source "ChessBase"]
[SourceQuality "1"]
[TimeControl "900+10"]

1. d4 {[%emt 0:00:00]} e6 {[%emt 0:00:00]} 2. c4 {[%emt 0:00:00]} b6 {[%emt 0:00:00]} 3. e4 {[%emt 0:00:06]} Bb4+ {[%emt 0:00:00]} 4. Bd2 {[%emt 0:00:03]} Bxd2+ {[%emt 0:00:01]} 5. Nxd2 {[%emt 0:00:02]} Ne7 {[%emt 0:00:12]} 6. Bd3 {[%emt 0:00:07]} d6 {[%emt 0:00:04]} 7. Ne2 {[%emt 0:00:35]} e5 {[%emt 0:00:12]} 8. d5 {[%emt 0:00:59]} O-O {[%emt 0:00:19]} 9. O-O {[%emt 0:00:22]} Ng6 {[%emt 0:01:37]} 10. b4 {[%emt 0:00:19]} a5 {[%emt 0:00:15]} 11. a3 {[%emt 0:00:08]} Nd7 {[%emt 0:00:53]} 12. Rc1 {[%emt 0:00:22]} Nf4 {[%emt 0:01:04]} 13. Nxf4 {[%emt 0:01:58]} exf4 {[%emt 0:00:01]} 14. Nf3 {[%emt 0:00:19]} Qf6 {[%emt 0:00:13]} 15. Qc2 {[%emt 0:00:28]} axb4 {[%emt 0:00:51]} 16. axb4 {[%emt 0:00:11]} Ra3 {[%emt 0:00:42]} 17. e5 {[%emt 0:00:49]} Nxe5 {[%emt 0:00:07]} 18. Nxe5 {[%emt 0:00:13]} Qxe5 {[%emt 0:00:09]} 19. Bxh7+ {[%emt 0:00:06]} Kh8 {[%emt 0:00:01]} 20. Rfe1 {[%emt 0:00:33]} Qg5 {[%emt 0:00:51]} 21. Bd3 {[%emt 0:04:06]} Bh3 {[%emt 0:00:53]} 22. g3 {[%emt 0:01:07]} fxg3 {[%emt 0:01:43]} 23. fxg3 {[%emt 0:00:28]} Rfa8 {[%emt 0:00:31]} 24. Qe2 {[%emt 0:02:35]} g6 {[%emt 0:00:57]} 25. Rc2 {[%emt 0:00:54]} Kg7 {[%emt 0:00:54]} 26. Be4 {[%emt 0:00:58]} Re8 {[%emt 0:02:14]} 27. Qf2 {[%emt 0:00:13]} Qe5 {[%emt 0:01:26]} 28. Rce2 {[%emt 0:00:45]} Ra1 {[%emt 0:00:51]} 29. Bf3 {[%emt 0:00:51]} Rxe1+ {[%emt 0:00:02]} 30. Qxe1 {[%emt 0:00:01]} Qd4+ {[%emt 0:00:04]} 31. Kh1 {[%emt 0:00:04]} Qd3 {[%emt 0:00:41]} 32. Qa1+ {[%emt 0:00:26]} f6 {[%emt 0:00:41]} 33. Rf2 {[%emt 0:00:01]} Re3 {[%emt 0:01:02]} 34. Bg2 Bxg2+ {[%emt 0:00:41]} 35. Kxg2 {[%emt 0:00:19]} Re5 {[%emt 0:00:07]} 36. Qf1 {[%emt 0:00:09]} Qe4+ {[%emt 0:00:03]} 37. Kg1 {[%emt 0:00:02]} Qd4 {[%emt 0:00:07]} 38. Kg2 {[%emt 0:00:06]} Re4 {[%emt 0:00:10]} 39. Rc2 {[%emt 0:00:25]} Qe5 {[%emt 0:00:09]} 40. Qf2 {[%emt 0:00:16]} Re1 {[%emt 0:00:08]} 41. Qf4 {[%emt 0:00:09]} Qa1 {[%emt 0:00:18]} 42. Rf2 {[%emt 0:00:13]} Qc3 {[%emt 0:00:27]} 43. Qg4 {[%emt 0:00:06]} Re7 {[%emt 0:00:12]} 44. Qf4 {[%emt 0:00:05]} Rf7 {[%emt 0:00:14]} 45. h4 {[%emt 0:00:19]} Qxb4 {[%emt 0:00:06]} 46. h5 {[%emt 0:00:01]} gxh5 {[%emt 0:00:11]} 47. Re2 {[%emt 0:00:03]} Qb1 {[%emt 0:00:07]} 48. Re6 {[%emt 0:00:23]} Qc2+ {[%emt 0:00:02]} 49. Kh3 {[%emt 0:00:04]} Qg6 {[%emt 0:00:04]} 50. Kh4 {[%emt 0:00:19]} Qb1 {[%emt 0:00:10]} 51. Kxh5 {[%emt 0:00:09]} Qh1+ {[%emt 0:00:30]} 52. Qh4 {[%emt 0:00:02]} Qf3+ {[%emt 0:00:05]} 53. Qg4+ {[%emt 0:00:04]} Qxg4+ {[%emt 0:00:01]} 54. Kxg4 {[%emt 0:00:01]} Kg6 {[%emt 0:00:07]} 55. Kf4 {[%emt 0:00:08]} Rh7 {[%emt 0:00:20]} 56. g4 {[%emt 0:00:05]} Rh1 {[%emt 0:00:10]} 57. Re7 {[%emt 0:00:03]} Rf1+ {[%emt 0:00:05]} 58. Kg3 {[%emt 0:00:02]} Rc1 {[%emt 0:00:09]} 59. Rxc7 {[%emt 0:00:03]} b5 {[%emt 0:00:00]} 60. Rc6 {[%emt 0:00:14]} Rxc4 {[%emt 0:00:05]} 61. Rxd6 {[%emt 0:00:04]} Kg5 {[%emt 0:00:01]} 62. Rb6 {[%emt 0:00:11]} b4 {[%emt 0:00:22]} 63. d6 {[%emt 0:00:11]} Rxg4+ {[%emt 0:00:03]} 64. Kf3 {[%emt 0:00:00]} Rd4 {[%emt 0:00:26]} 65. Ke3 {[%emt 0:00:22]} Rd1 {[%emt 0:00:01]} 66. Rxb4 {[%emt 0:00:03]} Rxd6 {[%emt 0:00:02]} 67. Kf3 {[%emt 0:00:10]} f5 {[%emt 0:00:20]} 68. Kf2 {[%emt 0:00:08]} Rd2+ {[%emt 0:00:14]} 69. Kf3 {[%emt 0:00:04]} Rd3+ {[%emt 0:00:02]} 70. Kf2 {[%emt 0:00:02]} Ra3 {[%emt 0:00:04]} 71. Rc4 {[%emt 0:00:02]} f4 {[%emt 0:00:13]} 72. Rc8 {[%emt 0:00:16]} Ra2+ {[%emt 0:00:02]} 73. Kf3 {[%emt 0:00:01]} Ra3+ {[%emt 0:00:01]} 74. Kf2 {[%emt 0:00:01]} 1/2-1/2